Workbook

Sheet 表3-1 新增地方政府专项债券情况表
B1: DEBT_T_XXGK_CXZQSY | C1: AND T.AD_CODE_GK=441300 AND T.SET_YEAR_GK=2021 AND T.ZWLB_ID=02
B2: AD_CODE_GK#441300 | C2: AD_CODE#441300 | D2: SET_YEAR_GK#2021 | E2: ad_name#441300 惠州市本级 | F2: ZWLB_ID#02
B3: ZQ_NAME# | C3: ZQ_CODE# | E3: FXGM_AMT# | F3: FX_DATE# | G3: ZQ_RATE# | H3: ZQQX_NAME# | J3: XMZTZ# | K3: XMZTZ_ZQZJ# | L3: XMYTZ# | M3: XMYTZ_ZQZJ# | N3: REMARK#
B4: 表3-1
A5: 2020年 惠州市本级发行的新增地方政府专项债券情况表
O6: 单位：亿元
A7: 序号 | C7: 债券基本信息 | I7: 债券项目资产类型 | J7: 债券项目总投资 | L7: 债券项目已实现投资 | N7: 2020年度已取得收益 | O7: 项目预期收益 | P7: 备注
B8: 债券名称 | C8: 债券编码 | D8: 债券类型 | E8: 债券规模 | F8: 发行时间（年/月/日） | G8: 债券利率(%) | H8: 债券期限 | K8: 其中：债券资金安排 | M8: 其中：债券资金安排
A9: 1 | B9: 2020年粤港澳大湾区交通基础设施专项债券（二期）--2020年广东省政府专项债券（二期） | C9: 104738 | D9: 其他自平衡专项债券 | E9: 5.50 | F9: 2020-01-17 | G9: 3.34 | H9: 10年 | I9: 其他市政设施资产 | J9: =SUM(J10:J10) -> 40.14 | K9: =SUM(K10:K10) -> 22.50 | L9: =SUM(L10:L10) -> 9.48 | M9: =SUM(M10:M10) -> 5.50 | N9: 0.00 | O9: 10.73
B10: 市直 | E10: 5.50 | J10: 40.14 | K10: 22.50 | L10: 9.48 | M10: 5.50 | N10: 0.00 | O10: 10.73
A11: 2 | B11: 2020年粤港澳大湾区交通基础设施专项债券（三期）--2020年广东省政府专项债券（三期） | C11: 104739 | D11: 其他自平衡专项债券 | E11: 14.27 | F11: 2020-01-17 | G11: 3.92 | H11: 30年 | I11: 其他交通设施类资产,铁路 | J11: 91.80 | K11: =SUM(K12:K13) -> 83.15 | L11: 49.24 | M11: =SUM(M12:M13) -> 14.27 | N11: 0.00 | O11: 72.11 | P11: 包含铁路分摊项目，数据不重复加总
B12: 市直 | E12: 9.49 | J12: 85.35 | K12: 76.37 | L12: 44.89 | M12: 9.49 | N12: 0.00 | O12: 62.34 | P12: 包含铁路分摊项目
B13: 仲恺区 | E13: 4.78 | J13: 53.90 | K13: 6.78 | L13: 40.31 | M13: 4.78 | N13: 0.00 | O13: 60.77 | P13: 包含铁路分摊项目
A14: 3 | B14: 2020年粤港澳大湾区生态环保专项债券（一期）--2020年广东省政府专项债券（五期） | C14: 104741 | D14: 其他自平衡专项债券 | E14: 2.54 | F14: 2020-01-17 | G14: 3.34 | H14: 10年 | I14: 其他交通设施类资产,市政道路,污水处理 | J14: =SUM(J15:J15) -> 61.34 | K14: =SUM(K15:K15) -> 10.64 | L14: =SUM(L15:L15) -> 27.29 | M14: =SUM(M15:M15) -> 2.54 | N14: 0.00 | O14: 35.16
B15: 仲恺区 | E15: 2.54 | J15: 61.34 | K15: 10.64 | L15: 27.29 | M15: 2.54 | N15: 0.00 | O15: 35.16
A16: 4 | B16: 2020年粤港澳大湾区民生服务专项债券（一期）--2020年广东省政府专项债券（七期） | C16: 104743 | D16: 其他自平衡专项债券 | E16: 3.50 | F16: 2020-01-17 | G16: 3.34 | H16: 10年 | I16: 公立医院,铁路 | J16: =SUM(J17:J17) -> 26.81 | K16: =SUM(K17:K17) -> 24.91 | L16: =SUM(L17:L17) -> 17.88 | M16: =SUM(M17:M17) -> 3.50 | N16: 0.00 | O16: 17.17
B17: 市直 | E17: 3.50 | J17: 26.81 | K17: 24.91 | L17: 17.88 | M17: 3.50 | N17: 0.00 | O17: 17.17
A18: 5 | B18: 2020年粤港澳大湾区市政和产业园区基础设施专项债券（一期）--2020年广东省政府专项债券（八期） | C18: 104744 | D18: 其他自平衡专项债券 | E18: 0.45 | F18: 2020-01-17 | G18: 3.34 | H18: 10年 | I18: 其他资产 | J18: =SUM(J19:J19) -> 7.50 | K18: =SUM(K19:K19) -> 1.45 | L18: =SUM(L19:L19) -> 6.00 | M18: =SUM(M19:M19) -> 0.45 | N18: 0.00 | O18: 0.55
B19: 仲恺区 | E19: 0.45 | J19: 7.50 | K19: 1.45 | L19: 6.00 | M19: 0.45 | N19: 0.00 | O19: 0.55
A20: 6 | B20: 2020年粤港澳大湾区新基建专项债券（二期）--2020年广东省政府专项债券（三十一期） | C20: 104790 | D20: 其他自平衡专项债券 | E20: 1.00 | F20: 2020-05-12 | G20: 3.66 | H20: 30年 | I20: 铁路 | J20: =SUM(J21:J21) -> 28.26 | K20: =SUM(K21:K21) -> 20.00 | L20: =SUM(L21:L21) -> 4.00 | M20: =SUM(M21:M21) -> 1.00 | N20: 0.00 | O20: 4.16
B21: 市直 | E21: 1.00 | J21: 28.26 | K21: 20.00 | L21: 4.00 | M21: 1.00 | N21: 0.00 | O21: 4.16
A22: 7 | B22: 2020年粤港澳大湾区交通基础设施专项债券（五期）--2020年广东省政府专项债券（三十三期） | C22: 104792 | D22: 其他自平衡专项债券 | E22: 8.00 | F22: 2020-05-12 | G22: 2.88 | H22: 10年 | I22: 高速公路 | J22: =SUM(J23:J23) -> 309.73 | K22: =SUM(K23:K23) -> 150.00 | L22: =SUM(L23:L23) -> 8.08 | M22: =SUM(M23:M23) -> 8.00 | N22: 0.00 | O22: 23.57
B23: 市直 | E23: 8.00 | J23: 309.73 | K23: 150.00 | L23: 8.08 | M23: 8.00 | N23: 0.00 | O23: 23.57
A24: 8 | B24: 2020年粤港澳大湾区交通基础设施专项债券（八期）--2020年广东省政府专项债券（三十六期） | C24: 104795 | D24: 其他自平衡专项债券 | E24: 4.80 | F24: 2020-05-12 | G24: 3.66 | H24: 30年 | I24: 其他交通设施类资产,铁路 | J24: =SUM(J25:J26) -> 46.39 | K24: =SUM(K25:K26) -> 11.42 | L24: =SUM(L25:L26) -> 33.19 | M24: =SUM(M25:M26) -> 4.80 | N24: 0.00 | O24: =SUM(O25:O26) -> 46.57
B25: 市直 | E25: 2.30 | J25: 31.45 | K25: 8.92 | L25: 18.25 | M25: 2.30 | N25: 0.00 | O25: 24.88
B26: 仲恺区 | E26: 2.50 | J26: 14.94 | K26: 2.50 | L26: 14.94 | M26: 2.50 | N26: 0.00 | O26: 21.69
A27: 9 | B27: 2020年粤港澳大湾区市政和产业园区基础设施专项债券（二期）--2020年广东省政府专项债券（四十二期） | C27: 104801 | D27: 其他自平衡专项债券 | E27: 3.40 | F27: 2020-05-12 | G27: 2.88 | H27: 10年 | I27: 其他市政设施资产 | J27: =SUM(J28) -> 5.89 | K27: 5.89 | L27: 3.40 | M27: 3.40 | N27: 0.00 | O27: 5.56
B28: 大亚湾区 | E28: 3.40 | J28: 5.89 | K28: 5.89 | L28: 3.40 | M28: 3.40 | N28: 0.00 | O28: 5.56
A29: 10 | B29: 2020年粤港澳大湾区交通基础设施专项债券（十一期）--2020年广东省政府专项债券（六十四期） | C29: 2005742 | D29: 其他自平衡专项债券 | E29: 2.40 | F29: 2020-08-11 | G29: 3.98 | H29: 30年 | I29: 其他交通设施类资产,铁路 | J29: =SUM(J30:J31) -> 68.88 | K29: =SUM(K30:K31) -> 30.76 | L29: =SUM(L30:L31) -> 42.34 | M29: =SUM(M30:M31) -> 2.40 | N29: 0.00 | O29: =SUM(O30:O31) -> 45.01
B30: 市直 | E30: 1.20 | J30: 28.53 | K30: 26.56 | L30: 17.69 | M30: 1.20 | N30: 0.00 | O30: 15.75
B31: 仲恺区 | E31: 1.20 | J31: 40.35 | K31: 4.20 | L31: 24.65 | M31: 1.20 | N31: 0.00 | O31: 29.26
A32: 11 | B32: 2020年粤港澳大湾区生态环保专项债券（五期）--2020年广东省政府专项债券（六十六期） | C32: 2005744 | D32: 其他自平衡专项债券 | E32: 3.00 | F32: 2020-08-11 | G32: 3.7 | H32: 15年 | I32: 污染防治 | J32: =SUM(J33:J33) -> 64.53 | K32: =SUM(K33:K33) -> 7.00 | L32: =SUM(L33:L33) -> 6.93 | M32: =SUM(M33:M33) -> 3.00 | N32: 0.00 | O32: 63.28
B33: 市直 | E33: 3.00 | J33: 64.53 | K33: 7.00 | L33: 6.93 | M33: 3.00 | N33: 0.00 | O33: 63.28
A34: 12 | B34: 2020年粤港澳大湾区民生服务专项债券（五期）--2020年广东省政府专项债券（六十八期） | C34: 2005746 | D34: 其他自平衡专项债券 | E34: 0.50 | F34: 2020-08-11 | G34: 3.82 | H34: 20年 | I34: 公立医院,市政道路 | J34: 24.98 | K34: 3.50 | L34: 13.75 | M34: 0.50 | N34: 0.00 | O34: 43.24
B35: 仲恺区 | E35: 0.50 | J35: 24.98 | K35: 3.50 | L35: 13.75 | M35: 0.50 | N35: 0.00 | O35: 43.24
A36: 13 | B36: 2020年粤港澳大湾区市政和产业园区基础设施专项债券（四期）--2020年广东省政府专项债券（六十九期） | C36: 2005747 | D36: 其他自平衡专项债券 | E36: 4.00 | F36: 2020-08-11 | G36: 3.21 | H36: 10年 | I36: 其他市政设施资产 | J36: 20.21 | K36: 4.00 | L36: 14.05 | M36: 4.00 | N36: 0.00 | O36: 13.07
B37: 大亚湾区 | E37: 4.00 | J37: 20.21 | K37: 4.00 | L37: 14.05 | M37: 4.00 | N37: 0.00 | O37: 13.07
A38: 14 | B38: 2020年粤港澳大湾区市政和产业园区基础设施专项债券（五期）--2020年广东省政府专项债券（七十期） | C38: 2005748 | D38: 其他自平衡专项债券 | E38: 4.30 | F38: 2020-08-11 | G38: 3.82 | H38: 20年 | I38: 市政道路 | J38: =SUM(J39:J39) -> 39.16 | K38: =SUM(K39:K39) -> 12.40 | L38: =SUM(L39:L39) -> 16.06 | M38: =SUM(M39:M39) -> 4.30 | N38: 0.00 | O38: 29.02
B39: 仲恺区 | E39: 4.30 | J39: 39.16 | K39: 12.40 | L39: 16.06 | M39: 4.30 | N39: 0.00 | O39: 29.02
B40: 备注：市本级包括市直、仲恺区、大亚湾区

Sheet 表3-2 新增地方政府专项债券资金收支情况表
A1: DEBT_T_XXGK_CXSRZC | B1: AND T.AD_CODE_GK=441300 AND T.SET_YEAR_GK=2021 AND T.ZWLB_ID='02'
A2: AD_CODE_GK#441300 | B2: AD_CODE#441300 | C2: SET_YEAR_GK#2021 | D2: AD_NAME#441300 惠州市本级 | E2: SET_YEAR#2021 | F2: ZWLB_ID#02
B3: ZQ_NAME# | C3: SR_AMT# | D3: GNFL_NAME# | E3: ZC_AMT# | F3: GNFL_CODE#
A4: 表3-2
A5: 2020年 惠州市本级发行的新增地方政府专项债券资金收支情况表
E6: 单位：亿元
A7: 序号 | B7: 2020年末新增专项债券资金收入 | D7: 2020年末新增专项债券资金安排的支出
B8: 债券名称 | C8: 金额 | D8: 支出功能分类 | E8: 金额
A9: 合 计 | C9: 57.66 | D9: 合 计 | E9: =E10 -> 57.66
A10: 1 | B10: 2020年粤港澳大湾区交通基础设施专项债券（二期）--2020年广东省政府专项债券（二期） | C10: 5.50 | D10: 229其他支出 | E10: =SUM(E11:E13) -> 57.66
B11: 市直 | C11: 5.50 | D11: 市直 | E11: 33.99
A12: 2 | B12: 2020年粤港澳大湾区交通基础设施专项债券（三期）--2020年广东省政府专项债券（三期） | C12: =SUM(C13:C14) -> 14.27 | D12: 仲恺区 | E12: 16.27
B13: 市直 | C13: 9.49 | D13: 大亚湾区 | E13: 7.40
B14: 仲恺区 | C14: 4.78
A15: 3 | B15: 2020年粤港澳大湾区生态环保专项债券（一期）--2020年广东省政府专项债券（五期） | C15: 2.54
B16: 仲恺区 | C16: 2.54
A17: 4 | B17: 2020年粤港澳大湾区民生服务专项债券（一期）--2020年广东省政府专项债券（七期） | C17: 3.50 | F17: 212
B18: 市直 | C18: 3.50 | F18: 212
A19: 5 | B19: 2020年粤港澳大湾区市政和产业园区基础设施专项债券（一期）--2020年广东省政府专项债券（八期） | C19: 0.45 | F19: 212
B20: 仲恺区 | C20: 0.45 | F20: 212
A21: 6 | B21: 2020年粤港澳大湾区新基建专项债券（二期）--2020年广东省政府专项债券（三十一期） | C21: 1.00 | F21: 229
B22: 市直 | C22: 1.00 | F22: 229
A23: 7 | B23: 2020年粤港澳大湾区交通基础设施专项债券（五期）--2020年广东省政府专项债券（三十三期） | C23: 8.00 | F23: 229
B24: 市直 | C24: 8.00 | F24: 229
A25: 8 | B25: 2020年粤港澳大湾区交通基础设施专项债券（八期）--2020年广东省政府专项债券（三十六期） | C25: =SUM(C26:C27) -> 4.80
B26: 市直 | C26: 2.30
B27: 仲恺区 | C27: 2.50
A28: 9 | B28: 2020年粤港澳大湾区市政和产业园区基础设施专项债券（二期）--2020年广东省政府专项债券（四十二期） | C28: 3.40
B29: 大亚湾区 | C29: 3.40
A30: 10 | B30: 2020年粤港澳大湾区交通基础设施专项债券（十一期）--2020年广东省政府专项债券（六十四期） | C30: =SUM(C31:C32) -> 2.40
B31: 市直 | C31: 1.20
B32: 仲恺区 | C32: 1.20
A33: 11 | B33: 2020年粤港澳大湾区生态环保专项债券（五期）--2020年广东省政府专项债券（六十六期） | C33: 3.00
B34: 市直 | C34: 3.00
A35: 12 | B35: 2020年粤港澳大湾区民生服务专项债券（五期）--2020年广东省政府专项债券（六十八期） | C35: 0.50
B36: 仲恺区 | C36: 0.50
A37: 13 | B37: 2020年粤港澳大湾区市政和产业园区基础设施专项债券（四期）--2020年广东省政府专项债券（六十九期） | C37: 4.00
B38: 大亚湾区 | C38: 4.00
A39: 14 | B39: 2020年粤港澳大湾区市政和产业园区基础设施专项债券（五期）--2020年广东省政府专项债券（七十期） | C39: 4.30
B40: 仲恺区 | C40: 4.30
A41: 备注：市本级包括市直、仲恺区、大亚湾区
